fUST/lending_fUST_20250223
["ID","MTS","AMOUNT","RATE_DAILY","PERIOD"]
[354168219,1740321042483,-500.0,0.00013945,2]
[354168220,1740321042492,-590.64,0.00013945,2]
[354168221,1740321042501,-153.8557824,0.00013945,2]
[354168222,1740321042510,-954.03244868,0.0001395,2]
[354168223,1740321042519,-1000.0,0.00014,16]
[354168224,1740321042528,-182.687171,0.00014,2]
[354168225,1740321042538,-554.70841,0.00014,2]
[354168226,1740321042547,-554.70841,0.00014,2]
[354168227,1740321042556,-182.687171,0.00014026,2]
[354168228,1740321042564,-182.687171,0.00014026,2]
[354168229,1740321042573,-1000.0,0.00014026,7]
[354168230,1740321042583,-1000.0,0.00014026,7]
[354168231,1740321042592,-1000.0,0.00014026,7]
[354168232,1740321042600,-1000.0,0.00014026,7]
[354168233,1740321042610,-1000.0,0.00014026,7]
[354168234,1740321042619,-1000.0,0.00014026,7]
[354168235,1740321042628,-1000.0,0.00014026,7]
[354168236,1740321042637,-1000.0,0.00014026,7]
[354168237,1740321042646,-1000.0,0.00014026,7]
[354168238,1740321042656,-1000.0,0.00014026,7]
[354168239,1740321042665,-1000.0,0.00014026,7]
[354168240,1740321042674,-1000.0,0.00014026,7]
[354168241,1740321042683,-1000.0,0.00014026,7]
[354168242,1740321042692,-1000.0,0.00014026,7]
[354168243,1740321042701,-239.05613,0.00014026,2]
[354168244,1740321042710,-1000.0,0.00014026,7]
[354168245,1740321042719,-239.05613,0.00014026,2]
[354168246,1740321042729,-1000.0,0.00014026,7]
[354168247,1740321042738,-1000.0,0.00014026,7]
[354168248,1740321042747,-1000.0,0.00014026,7]
[354168249,1740321042757,-239.05613,0.00014026,2]
[354168250,1740321042766,-1000.0,0.00014026,7]
[354168251,1740321042775,-239.05613,0.00014026,2]
[354168252,1740321042783,-1000.0,0.00014026,7]
[354168253,1740321042793,-1000.0,0.00014026,7]
[354168254,1740321042802,-1000.0,0.00014026,7]
[354168255,1740321042811,-1000.0,0.00014026,7]
[354168256,1740321042820,-1000.0,0.00014026,7]
[354168258,1740321042829,-1000.0,0.00014026,7]
[354168259,1740321042838,-1000.0,0.00014026,7]
[354168260,1740321042847,-1000.0,0.00014026,7]
[354168261,1740321042856,-1000.0,0.00014026,7]
[354168262,1740321042865,-1000.0,0.00014026,7]
[354168263,1740321042874,-1000.0,0.00014026,7]
[354168264,1740321042883,-1000.0,0.00014026,7]
[354168265,1740321042892,-1000.0,0.00014026,7]
[354168266,1740321042901,-1000.0,0.00014026,7]
[354168267,1740321042910,-1000.0,0.00014026,7]
[354168268,1740321042919,-1000.0,0.00014026,7]
[354168269,1740321042928,-1000.0,0.00014026,7]
[354168270,1740321042937,-1000.0,0.00014026,7]
[354168272,1740321042947,-415.228332,0.00014026,7]
[354168273,1740321042956,-554.70841,0.00014026,2]
[354168276,1740321042966,-554.70841,0.00014026,2]
[354168279,1740321042975,-648.89,0.00014027,2]
[354168280,1740321042983,-151.0,0.00014027,2]
[354168282,1740321042991,-500.0,0.00014027,2]
[354168284,1740321043000,-696.93,0.00014027,2]
[354168287,1740321043009,-500.0,0.00014027,2]
[354168290,1740321043019,-485.77362,0.00014027,2]
[354168292,1740321043028,-485.77362,0.00014027,2]
[354168294,1740321043036,-182.687171,0.00014027,2]
[354168296,1740321043046,-182.687171,0.00014027,2]
[354168298,1740321043055,-500.0,0.00014027,2]
[354168301,1740321043065,-500.0,0.00014027,2]
[354168304,1740321043074,-500.0,0.00014027,2]
[354168306,1740321043083,-3954.08,0.00014027,2]
[354168308,1740321043092,-714.24,0.00014027,2]
[354168310,1740321043101,-2387.06,0.00014027,2]
[354168312,1740321043110,-1048.17,0.00014027,2]
[354168314,1740321043119,-554.70841,0.00014027,2]
[354168317,1740321043128,-500.0,0.00014027,2]
[354168320,1740321043137,-554.70841,0.00014027,2]
[354168322,1740321043146,-949.6,0.00014027,2]
[354168325,1740321043155,-500.0,0.00014027,2]
[354168327,1740321043164,-590.64,0.00014027,2]
[354168329,1740321043173,-52.52695675,0.00014049,2]
[354168337,1740321043248,-492.93274725,0.00014049,2]
[354168339,1740321043258,-361.42074556,0.00014049,2]
[354168341,1740321043269,-184.03895844,0.00014049,2]
[354168343,1740321043278,-545.459704,0.00014049,2]
[354168345,1740321043287,-545.459704,0.00014049,2]
[354168347,1740321043296,-460.87671618,0.00014049,2]
[354168349,1740321043315,-24.89690382,0.00014049,2]
[354168351,1740321043325,-485.77362,0.00014049,2]
[354168353,1740321043334,-485.77362,0.00014049,2]
[354168355,1740321043343,-469.35128245,0.00014049,2]
[354168378,1740321043542,-16.42233755,0.00014049,2]
[354168380,1740321043552,-151.0,0.0001405,2]
[354168382,1740321043561,-151.0,0.0001405,2]
[354168384,1740321043570,-66.05309326,0.0001405,2]
[354168387,1740321043590,-84.94690674,0.0001405,2]
[354168390,1740321043599,-243.724055,0.0001405,2]
[354168392,1740321043608,-243.724055,0.0001405,2]
[354168394,1740321043617,-151.0,0.0001405,2]
[354168395,1740321043626,-151.0,0.0001405,2]
[354168397,1740321043635,-151.0,0.0001405,2]
[354168400,1740321043645,-222.751193,0.0001405,2]
[354168401,1740321043654,-317.382402,0.0001405,2]
[354168403,1740321043663,-317.382402,0.0001405,2]
[354168405,1740321043673,-222.751193,0.0001405,2]
[354168408,1740321043682,-598.277259,0.0001405,2]
[354168410,1740321043692,-2320.115459,0.0001405,2]
[354168411,1740321043700,-2320.115459,0.0001405,2]
[354168413,1740321043709,-545.459704,0.0001405,2]
[354168416,1740321043718,-545.459704,0.0001405,2]
[354168418,1740321043728,-485.77362,0.0001405,2]
[354168420,1740321043737,-485.77362,0.0001405,2]
[354168422,1740321043746,-182.687171,0.0001405,2]
[354168423,1740321043755,-182.687171,0.0001405,2]
[354168425,1740321043764,-239.05613,0.0001405,2]
[354168427,1740321043773,-239.05613,0.0001405,2]
[354168429,1740321043783,-554.70841,0.0001405,2]
[354168431,1740321043792,-554.70841,0.0001405,2]
[354168434,1740321043801,-1661.96466323,0.0001405,2]
[354168450,1740321043949,-560.036468,0.00013698,2]
[354168452,1740321043960,-560.036468,0.0001378,2]
[354168454,1740321043969,-394.41953019,0.00013863,2]
[354168457,1740321043982,-165.61693781,0.00013863,2]
[354168459,1740321043991,-1683.20178926,0.0001405,2]
[354168735,1740321495372,260.865764,9.041e-05,2]
[354168743,1740322171094,-4741.47749467,9.913e-05,2]
[354168791,1740322232856,-5000.0,9.716e-05,2]
[354168793,1740322232866,-5000.0,9.814e-05,2]
[354168795,1740322232875,-300.0,0.00010955,2]
[354168797,1740322232885,-628.36,0.00010959,2]
[354168799,1740322232894,-420.0,0.00012039,2]
[354168801,1740322232904,-587.0,0.0001323,2]
[354168803,1740322232914,-152.31121331,0.00013598,2]
[354168805,1740322232923,-397.88431084,0.00013698,2]
[354168807,1740322232933,-151.0,0.00013698,2]
[354168809,1740322232942,-454.84183038,0.00013698,2]
[354168811,1740322232951,-160.86666227,0.00013698,2]
[354168813,1740322232961,-500.0,0.00013698,2]
[354168815,1740322232970,-505.30082004,0.00013698,2]
[354168817,1740322232980,-501.67109497,0.00013698,2]
[354168819,1740322232989,-501.8414813,0.00013698,2]
[354168821,1740322232999,-501.80598305,0.00013698,2]
[354168823,1740322233008,-500.0,0.00013698,2]
[354168825,1740322233018,-500.0,0.00013698,2]
[354168827,1740322233028,-500.0,0.00013698,2]
[354168829,1740322233038,-500.0,0.00013698,2]
[354168831,1740322233049,-502.7775335,0.00013698,2]
[354168833,1740322233058,-530.21,0.00013698,2]
[354168835,1740322233068,-237.15709318,0.00013698,2]
[354168837,1740322233078,-500.0,0.00013698,2]
[354168839,1740322233088,-216.2,0.00013698,2]
[354168841,1740322233098,-500.0,0.00013698,2]
[354168843,1740322233108,-500.0,0.00013698,2]
[354168857,1740322233239,-500.0,0.00013698,2]
[354168859,1740322233250,-163.05,0.00013698,2]
[354168861,1740322233260,-500.0,0.00013698,2]
[354168863,1740322233270,-212.52268403,0.00013698,2]
[354168865,1740322233279,-500.0,0.00013698,2]
[354168867,1740322233290,-500.0,0.00013698,2]
[354168869,1740322233301,-500.0,0.00013698,2]
[354168872,1740322233311,-500.0,0.00013698,2]
[354168874,1740322233322,-500.0,0.00013698,2]
[354168876,1740322233331,-500.0,0.00013698,2]
[354168878,1740322233342,-500.0,0.00013698,2]
[354168880,1740322233353,-500.0,0.00013698,2]
[354168881,1740322233364,-500.0,0.00013698,2]
[354168883,1740322233374,-500.0,0.00013698,2]
[354168885,1740322233383,-500.0,0.00013698,2]
[354168887,1740322233393,-500.0,0.00013698,2]
[354168889,1740322233402,-500.0,0.00013698,2]
[354168892,1740322233413,-291.80128598,0.00013698,2]
[354168894,1740322233423,-500.0,0.00013698,2]
[354168896,1740322233433,-500.0,0.00013698,2]
[354168898,1740322233444,-372.38478291,0.00013698,2]
[354168900,1740322233453,-500.0,0.00013698,2]
[354168902,1740322233462,-500.0,0.00013698,2]
[354168904,1740322233472,-500.85,0.00013698,2]
[354168905,1740322233482,-500.0,0.00013698,2]
[354168907,1740322233491,-500.0,0.00013698,2]
[354168909,1740322233501,-500.0,0.00013698,2]
[354168912,1740322233511,-500.0,0.00013698,2]
[354168913,1740322233520,-500.0,0.00013698,2]
[354168915,1740322233530,-500.0,0.00013698,2]
[354168917,1740322233540,-500.0,0.00013698,2]
[354168920,1740322233549,-500.0,0.00013698,2]
[354168921,1740322233559,-500.0,0.00013698,2]
[354168923,1740322233568,-500.0,0.00013698,2]
[354168925,1740322233578,-500.0,0.00013698,2]
[354168927,1740322233587,-500.0,0.00013698,2]
[354168929,1740322233596,-500.0,0.00013698,2]
[354168932,1740322233606,-500.0,0.00013698,2]
[354168933,1740322233616,-500.0,0.00013698,2]
[354168935,1740322233625,-500.0,0.00013698,2]
[354168937,1740322233634,-500.0,0.00013698,2]
[354168940,1740322233645,-468.97891986,0.00013698,2]
[354168942,1740322233655,-502.68368155,0.00013698,2]
[354168944,1740322233665,-500.0,0.00013698,2]
[354168946,1740322233677,-500.0,0.00013698,2]
[354168948,1740322233687,-443.10445159,0.00013698,2]
[354168950,1740322233697,-500.0,0.00013698,2]
[354168952,1740322233708,-500.0,0.00013698,2]
[354168954,1740322233718,-500.0,0.00013698,2]
[354168956,1740322233728,-500.0,0.00013698,2]
[354168958,1740322233738,-500.0,0.00013698,2]
[354168960,1740322233748,-500.0,0.00013698,2]
[354168962,1740322233760,-532.97715623,0.00013698,2]
[354168964,1740322233770,-500.0,0.00013698,2]
[354168966,1740322233780,-500.0,0.00013698,2]
[354168968,1740322233791,-360.74115303,0.00013698,2]
[354168970,1740322233800,-500.0,0.00013698,2]
[354168971,1740322233811,-343.53041335,0.00013698,2]
[354168972,1740322233831,-156.46958665,0.00013698,2]
[354168973,1740322233842,-500.0,0.00013698,2]
[354168974,1740322233852,-500.0,0.00013698,2]
[354168975,1740322233861,-500.0,0.00013698,2]
[354168976,1740322233871,-471.37753631,0.00013698,2]
[354168977,1740322233880,-362.36272455,0.00013698,2]
[354168978,1740322233892,-137.63727545,0.00013698,2]
[354168979,1740322233902,-500.0,0.00013698,2]
[354168980,1740322233912,-352.87443267,0.00013698,2]
[354168981,1740322233921,-500.0,0.00013698,2]
[354168982,1740322233930,-599.85,0.00013698,2]
[354168983,1740322233940,-500.0,0.00013698,2]
[354168984,1740322233950,-480.82353893,0.00013698,2]
[354168993,1740322238510,-19.17646107,0.00013698,2]
[354168994,1740322238520,-500.0,0.00013698,2]
[354168995,1740322238530,-500.0,0.00013698,2]
[354168996,1740322238539,-504.9,0.00013698,2]
[354168997,1740322238548,-500.0,0.00013698,2]
[354168998,1740322238557,-500.0,0.00013698,2]
[354168999,1740322238566,-500.0,0.00013698,2]
[354169000,1740322238575,-883.5,0.00013698,2]
[354169001,1740322238585,-500.0,0.00013698,2]
[354169002,1740322238594,-500.0,0.00013698,2]
[354169004,1740322238604,-500.0,0.00013698,2]
[354169005,1740322238613,-618.45,0.00013698,2]
[354169006,1740322238622,-500.0,0.00013698,2]
[354169007,1740322238631,-500.0,0.00013698,2]
[354169008,1740322238640,-500.0,0.00013698,2]
[354169009,1740322238746,-500.0,0.00013698,2]
[354169010,1740322238758,-170.60194545,0.00013698,2]
[354169011,1740322238768,-500.0,0.00013698,2]
[354169012,1740322238777,-500.0,0.00013698,2]
[354169013,1740322238786,-500.0,0.00013698,2]
[354169014,1740322238795,-500.0,0.00013698,2]
[354169015,1740322238805,-502.21081898,0.00013698,2]
[354169016,1740322238814,-500.0,0.00013698,2]
[354169017,1740322238824,-500.0,0.00013698,2]
[354169018,1740322238834,-500.0,0.00013698,2]
[354169019,1740322238843,-500.0,0.00013698,2]
[354169020,1740322238852,-500.0,0.00013698,2]
[354169021,1740322238861,-504.64122037,0.00013698,2]
[354169022,1740322238871,-500.0,0.00013698,2]
[354169023,1740322238880,-500.0,0.00013698,2]
[354169024,1740322238889,-500.0,0.00013698,2]
[354169025,1740322238898,-500.0,0.00013698,2]
[354169026,1740322238907,-500.0,0.00013698,2]
[354169027,1740322238916,-967.42,0.00013698,2]
[354169028,1740322238926,-500.0,0.00013698,2]
[354169029,1740322238936,-500.0,0.00013698,2]
[354169030,1740322238945,-500.7774841,0.00013698,2]
[354169031,1740322238954,-500.0,0.00013698,2]
[354169032,1740322238963,-503.98368912,0.00013698,2]
[354169033,1740322238972,-500.0,0.00013698,2]
[354169034,1740322238981,-500.0,0.00013698,2]
[354169035,1740322238991,-500.0,0.00013698,2]
[354169036,1740322239000,-500.0,0.00013698,2]
[354169037,1740322239009,-500.0,0.00013698,2]
[354169038,1740322239019,-500.0,0.00013698,2]
[354169039,1740322239028,-500.0,0.00013698,2]
[354169040,1740322239037,-500.0,0.00013698,2]
[354169041,1740322239047,-500.0,0.00013698,2]
[354169042,1740322239055,-500.0,0.00013698,2]
[354169043,1740322239064,-502.04569964,0.00013698,2]
[354169044,1740322239073,-500.0,0.00013698,2]
[354169045,1740322239082,-500.0,0.00013698,2]
[354169046,1740322239091,-590.02296924,0.00013698,2]
[354169047,1740322239100,-500.0,0.00013698,2]
[354169048,1740322239110,-500.0,0.00013698,2]
[354169049,1740322239119,-502.07321453,0.00013698,2]
[354169050,1740322239128,-500.0,0.00013698,2]
[354169051,1740322239137,-500.0,0.00013698,2]
[354169052,1740322239146,-500.0,0.00013698,2]
[354169053,1740322239156,-500.0,0.00013698,2]
[354169054,1740322239165,-500.0,0.00013698,2]
[354169055,1740322239174,-533.94018522,0.00013698,2]
[354169056,1740322239183,-500.0,0.00013698,2]
[354169057,1740322239193,-500.0,0.00013698,2]
[354169058,1740322239202,-500.0,0.00013698,2]
[354169059,1740322239212,-500.0,0.00013698,2]
[354169060,1740322239221,-500.0,0.00013698,2]
[354169061,1740322239230,-500.0,0.00013698,2]
[354169062,1740322239239,-500.0,0.00013698,2]
[354169063,1740322239249,-500.0,0.00013698,2]
[354169064,1740322239259,-500.0,0.00013698,2]
[354169065,1740322239269,-500.0,0.00013698,2]
[354169066,1740322239278,-3732.49,0.00013698,2]
[354169067,1740322239287,-500.0,0.00013698,2]
[354169068,1740322239297,-500.0,0.00013698,2]
[354169069,1740322239306,-500.0,0.00013698,2]
[354169070,1740322239315,-503.13710696,0.00013698,2]
[354169071,1740322239324,-662.9,0.00013698,2]
[354169072,1740322239334,-500.0,0.00013698,2]
[354169073,1740322239343,-500.0,0.00013698,2]
[354169074,1740322239352,-500.0,0.00013698,2]
[354169075,1740322239362,-2179.28,0.00013698,2]
[354169076,1740322239371,-500.0,0.00013698,2]
[354169077,1740322239380,-500.0,0.00013698,2]
[354169078,1740322239390,-500.0,0.00013698,2]
[354169079,1740322239399,-500.0,0.00013698,2]
[354169080,1740322239408,-500.0,0.00013698,2]
[354169081,1740322239417,-500.0,0.00013698,2]
[354169082,1740322239426,-500.0,0.00013698,2]
[354169083,1740322239435,-501.18232424,0.00013698,2]
[354169084,1740322239445,-935.04,0.00013698,2]
[354169085,1740322239454,-500.0,0.00013698,2]
[354169086,1740322239463,-500.0,0.00013698,2]
[354169087,1740322239473,-500.0,0.00013698,2]
[354169088,1740322239482,-551.5,0.00013698,2]
[354169089,1740322239491,-500.0,0.00013698,2]
[354169090,1740322239500,-301.85644535,0.00013699,2]
[354169091,1740322239509,-279.883058,0.00013699,2]
[354169092,1740322239518,-159.912923,0.00013699,2]
[354169093,1740322239527,-463.5022555,0.000137,2]
[354169094,1740322239536,-500.0,0.00013779,2]
[354169095,1740322239545,-500.0,0.00013779,2]
[354169096,1740322239554,-151.0,0.0001378,2]
[354169097,1740322239564,-530.21,0.0001378,2]
[354169098,1740322239574,-182.29,0.0001378,2]
[354169099,1740322239583,-500.0,0.0001378,2]
[354169100,1740322239593,-375.83557002,0.0001378,2]
[354169101,1740322239602,-500.0,0.0001378,2]
[354169102,1740322239611,-190.65,0.0001378,2]
[354169103,1740322239620,-500.0,0.0001378,2]
[354169104,1740322239630,-573.53599855,0.0001378,2]
[354169105,1740322239639,-364.4694089,0.0001378,2]
[354169106,1740322239648,-500.0,0.0001378,2]
[354169107,1740322239657,-500.0,0.0001378,2]
[354169108,1740322239666,-500.0,0.0001378,2]
[354169109,1740322239675,-500.0,0.0001378,2]
[354169110,1740322239684,-500.0,0.0001378,2]
[354169111,1740322239693,-500.0,0.0001378,2]
[354169112,1740322239703,-500.0,0.0001378,2]
[354169113,1740322239711,-883.5,0.0001378,2]
[354169114,1740322239721,-572.34,0.0001378,2]
[354169115,1740322239732,-500.0,0.0001378,2]
[354169116,1740322239745,-618.45,0.0001378,2]
[354169117,1740322239761,-500.0,0.0001378,2]
[354169118,1740322239774,-500.0,0.0001378,2]
[354169119,1740322239788,-500.0,0.0001378,2]
[354169120,1740322239800,-967.42,0.0001378,2]
[354169121,1740322239810,-608.53,0.0001378,2]
[354169122,1740322239823,-500.0,0.0001378,2]
[354169123,1740322239837,-500.0,0.0001378,2]
[354169124,1740322239849,-500.0,0.0001378,2]
[354169125,1740322239860,-500.0,0.0001378,2]
[354169126,1740322239872,-500.0,0.0001378,2]
[354169127,1740322239885,-500.0,0.0001378,2]
[354169128,1740322239896,-500.0,0.0001378,2]
[354169129,1740322239909,-3732.49,0.0001378,2]
[354169130,1740322239922,-500.0,0.0001378,2]
[354169131,1740322239934,-662.9,0.0001378,2]
[354169132,1740322239948,-500.0,0.0001378,2]
[354169133,1740322239960,-293.18759759,0.0001378,2]
[354169134,1740322239971,-2179.28,0.0001378,2]
[354169135,1740322239985,-500.0,0.0001378,2]
[354169136,1740322239997,-935.04,0.0001378,2]
[354169137,1740322240008,-500.0,0.0001378,2]
[354169138,1740322240021,-500.0,0.0001378,2]
[354169139,1740322240033,-551.5,0.0001378,2]
[354169140,1740322240045,-355.3336689,0.000138,2]
[354169141,1740322240057,-151.0,0.00013863,2]
[354169142,1740322240069,-151.0,0.00013863,2]
[354169143,1740322240079,-530.21,0.00013863,2]
[354169144,1740322240090,-500.0,0.00013863,2]
[354169145,1740322240101,-883.5,0.00013863,2]
[354169146,1740322240112,-500.0,0.00013863,2]
[354169147,1740322240123,-161.51272869,0.00013863,2]
[354169148,1740322240146,-456.93727131,0.00013863,2]
[354169149,1740322240158,-500.0,0.00013863,2]
[354169150,1740322240170,-151.0,0.00013863,2]
[354169151,1740322240182,-151.0,0.00013863,2]
[354169152,1740322240195,-151.0,0.00013863,2]
[354169153,1740322240208,-500.0,0.00013863,2]
[354169154,1740322240219,-967.42,0.00013863,2]
[354169155,1740322240232,-500.0,0.00013863,2]
[354169156,1740322240244,-500.0,0.00013863,2]
[354169157,1740322240257,-500.0,0.00013863,2]
[354169158,1740322240267,-182.97,0.00013863,2]
[354169159,1740322240278,-239.37675664,0.00013863,2]
[354169160,1740322240291,-2792.1,0.00013863,2]
[354169290,1740322246598,-258.52250533,0.00013561,2]
[354169291,1740322246608,-701.01324336,0.00013863,2]
[354169292,1740322246618,-60.92223708,0.00013863,2]
[354169293,1740322246713,-601.97776292,0.00013863,2]
[354169294,1740322246724,-2179.28,0.00013863,2]
[354169295,1740322246734,-935.04,0.00013863,2]
[354169296,1740322246839,-500.0,0.00013863,2]
[354169297,1740322246875,-551.5,0.00013863,2]
[354169298,1740322246889,-152.31121331,0.00013865,2]
[354169299,1740322246898,-13279.54588923,0.00013916,2]
[354169300,1740322246907,-151.0,0.00013944,2]
[354169301,1740322246917,-296.130285,0.00013944,2]
[354169302,1740322246926,-530.21,0.00013945,2]
[354169303,1740322246936,-476.030998,0.00013945,2]
[354169304,1740322246945,-151.0,0.00013945,2]
[354169305,1740322246954,-508.535671,0.00013945,2]
[354169306,1740322246964,-508.535671,0.00013945,2]
[354169307,1740322246974,-151.0,0.00013945,2]
[354169308,1740322246983,-151.0,0.00013945,2]
[354169309,1740322246993,-500.0,0.00013945,2]
[354169310,1740322247003,-151.0,0.00013945,2]
[354169311,1740322247012,-151.0,0.00013945,2]
[354169312,1740322247022,-185.750954,0.00013945,2]
[354169313,1740322247032,-883.5,0.00013945,2]
[354169314,1740322247041,-185.750954,0.00013945,2]
[354169315,1740322247051,-500.0,0.00013945,2]
[354169316,1740322247061,-174.50142395,0.00013945,2]
[354169317,1740322247073,-443.94857605,0.00013945,2]
[354169318,1740322247082,-236.00142362,0.00013945,2]
[354169321,1740322647759,150.32,8.001e-05,2]
[354169322,1740322650611,150.0,9.041e-05,2]
[354169323,1740322650645,97.822475,9.041e-05,2]
[354169330,1740323372129,-1226.52749649,0.0001202,2]
[354169422,1740323432143,-3773.47250351,0.00011781,2]
[354169424,1740323432157,-1963.31483396,0.000119,2]
[354169426,1740323432166,-300.0,0.00012766,2]
[354169428,1740323432176,-500.0,0.00012767,2]
[354169430,1740323432186,-500.0,0.00012767,2]
[354169431,1740323432198,-500.0,0.00012767,2]
[354169432,1740323432208,-500.0,0.00012767,2]
[354169434,1740323432218,-245.15815221,0.00012767,2]
[354169436,1740323432228,-13279.54588923,0.00013439,2]
[354169438,1740323432239,-152.31121331,0.00013678,2]
[354169440,1740323432248,-500.0,0.00013698,2]
[354169442,1740323432257,-500.0,0.00013698,2]
[354169444,1740323432266,-515.37,0.00013698,2]
[354169445,1740323432276,-500.0,0.00013698,2]
[354169446,1740323432285,-500.0,0.00013698,2]
[354169448,1740323432294,-846.49,0.00013698,2]
[354169450,1740323432304,-500.0,0.00013698,2]
[354169451,1740323432313,-500.0,0.00013698,2]
[354169452,1740323432322,-580.04,0.00013698,2]
[354169453,1740323432331,-3265.93,0.00013698,2]
[354169454,1740323432341,-500.0,0.00013698,2]
[354169455,1740323432354,-279.883059,0.00013699,2]
[354169456,1740323432364,-500.0,0.00013713,2]
[354169457,1740323432373,-818.16,0.00013778,2]
[354169458,1740323432383,-500.0,0.00013778,2]
[354169459,1740323432393,-1906.87,0.00013778,2]
[354169461,1740323432403,-500.0,0.00013779,2]
[354169463,1740323432413,-736.25,0.00013779,2]
[354169465,1740323432423,-500.0,0.00013779,2]
[354169467,1740323432432,-360.04,0.0001378,2]
[354169470,1740323432443,-515.37,0.0001378,2]
[354169471,1740323432452,-500.0,0.0001378,2]
[354169473,1740323432461,-500.0,0.0001378,2]
[354169475,1740323432471,-846.49,0.0001378,2]
[354169478,1740323432482,-500.0,0.0001378,2]
[354169479,1740323432491,-500.0,0.0001378,2]
[354169480,1740323432501,-580.04,0.0001378,2]
[354169481,1740323432510,-3265.93,0.0001378,2]
[354169482,1740323432520,-500.0,0.0001378,2]
[354169483,1740323432530,-152.44,0.00013795,2]
[354169484,1740323432539,-2799.66,0.000138,2]
[354169485,1740323432549,-154.796407,0.000138,2]
[354169486,1740323432559,-5000.0,0.0001385,2]
[354169487,1740323432568,-818.16,0.0001386,2]
[354169488,1740323432578,-500.0,0.0001386,2]
[354169489,1740323432588,-1906.87,0.0001386,2]
[354169490,1740323432598,-500.0,0.00013861,2]
[354169491,1740323432608,-736.25,0.00013861,2]
[354169492,1740323432618,-500.0,0.00013861,2]
[354169493,1740323432628,-515.37,0.00013863,2]
[354169494,1740323432637,-500.0,0.00013863,2]
[354169495,1740323432647,-846.49,0.00013863,2]
[354169496,1740323432656,-500.0,0.00013863,2]
[354169497,1740323432666,-500.0,0.00013863,2]
[354169498,1740323432676,-580.04,0.00013863,2]
[354169499,1740323432685,-2577.34911267,0.00013863,2]
[354169515,1740323437740,-695.17649006,0.00013698,2]
[354169516,1740323437785,-54.80350994,0.00013698,2]
[354169517,1740323437798,-531.68143293,0.0001378,2]
[354169518,1740323437811,-218.29856707,0.0001378,2]
[354169519,1740323437824,-688.58088733,0.00013863,2]
[354169520,1740323437836,-443.59526114,0.00013863,2]
[354169521,1740323437851,-56.40473886,0.00013863,2]
[354169522,1740323437864,-749.98,0.00013863,2]
[354169523,1740323437875,-5000.0,0.000139,2]
[354169524,1740323437887,-500.0,0.00013943,2]
[354169525,1740323437900,-1906.87,0.00013943,2]
[354169526,1740323437912,-568.97798369,0.00013944,2]
[354169527,1740323437924,-132.95868825,0.00013944,2]
[354169533,1740323440339,-500.0,0.00013698,2]
[354169534,1740323440351,-500.0,0.0001378,2]
[354169535,1740323440363,-603.29131175,0.00013944,2]
[354169536,1740323440374,-500.0,0.00013944,2]
[354169537,1740323440386,-515.37,0.00013945,2]
[354169538,1740323440398,-500.0,0.00013945,2]
[354169539,1740323440408,-846.49,0.00013945,2]
[354169540,1740323440418,-500.0,0.00013945,2]
[354169541,1740323440428,-500.0,0.00013945,2]
[354169542,1740323440438,-580.04,0.00013945,2]
[354169543,1740323440449,-2531.00430869,0.00013945,2]